Cogmind - Beta 15 @@@ ROGUE MODE // 2025.08.26 @ 19:39:09 Player: Iry-bot Result: Destroyed by I5-XLQ(R) with Subdweller Machine Gun Performance ------------- Evolutions (0) 0 Regions Visited (2) 400 Robots Destroyed (4) 20 Value Destroyed (159) 159 Prototype IDs (0) 0 Alien Tech Used (0) 0 Bonus (0) 0 TOTAL SCORE: 579 Bonus ------- None Cogmind --------- Core Integrity 0/250 Matter 243/300 Energy 76/250 System Corruption 0% Temperature Cool (4) Movement Treading (240) Ox1 Location -10/Subcaves Parts ------- > --- POWER (1) -------- Ion Engine > --- PROPULSION (2) --- Light Treads > --- UTILITY (2) ------ Disposable Heat Sink Large Storage Unit > --- WEAPON (2) ------- Subdweller Laser Battle Rifle > --- INVENTORY (15) --- Subdweller Power Source Compact Wheel Compact Wheel Subdweller Monowheel Subdweller Monowheel Subdweller Laser Assault Rifle Light Assault Rifle Scrap Shield Fragment (48) Peak State ------------ > --- POWER ------------ Improved Ion Engine > --- PROPULSION ------- Light Treads Light Treads > --- UTILITY ---------- Disposable Heat Sink Large Storage Unit > --- WEAPON ----------- Subdweller Laser Battle Rifle > --- INVENTORY -------- Ion Engine Subdweller Power Source Light Treads Compact Wheel Compact Wheel Subdweller Monowheel Subdweller Monowheel Subdweller Laser Assault Rifle Light Assault Rifle Scrap Shield Fragment [Rating: 12] Favorites ----------- Power Light Ion Engine Engine Light Ion Engine Propulsion Light Treads Treads Light Treads Utility Large Storage Unit Device Disposable Heat Sink Storage Large Storage Unit Weapon Small Laser Energy Gun Small Laser Ballistic Gun Light Assault Rifle Build | -11 -10 -10 ------- Run | Yrd Mat Sub Slots Evolved . | . . . Power . | . . . Propulsion . | . . . Utility . | . . . Weapon . | . . . Parts Attached 13 | 6 1 6 Power 3 | 1 . 2 Engine 3 | 1 . 2 Core . | . . . Reactor . | . . . Propulsion 3 | 2 . 1 Treads 3 | 2 . 1 Leg . | . . . Wheel . | . . . Hover . | . . . Flight . | . . . Utility 3 | 1 1 1 Device 1 | . . 1 Storage 2 | 1 1 . Processor . | . . . Hackware . | . . . Protection . | . . . Artifact . | . . . Weapon 4 | 2 . 2 Energy Gun 2 | 1 . 1 Energy Cannon . | . . . Ballistic Gun 2 | 1 . 1 Ballistic Cannon . | . . . Launcher . | . . . Special Weapon . | . . . Impact Weapon . | . . . Slashing Weapon . | . . . Piercing Weapon . | . . . Special Melee Weapon . | . . . Unidentified Prototypes . | . . . Parts Lost 5 | . . 5 Power 2 | . . 2 Propulsion 2 | . . 2 Utility . | . . . Weapon 1 | . . 1 Highest Loss Streak 5 | . . 5 To Critical Strikes . | . . . Average Backups 7 | 2 4 9 Power 2 | . 1 2 Propulsion 3 | 1 2 4 Utility . | . . . Weapon 2 | . 1 2 Tool/Special . | . . . Unused Backups 7 | . . 7 Power 1 | . . 1 Propulsion 4 | . . 4 Utility . | . . . Weapon 2 | . . 2 Tool/Special . | . . . Average Slot Usage (%) 90 | . 85 91 Engine 13 | . 14 13 Treads 27 | . 28 27 Device 5 | . . 6 Storage 14 | . 14 14 Energy Gun 14 | . 14 14 Ballistic Gun 14 | . 14 14 Peak Build Rating 12 | 6 7 12 Average Rating 7 | 4 6 8 On Entrance 4 | . 6 6 Naked Turns . | . . . Heaviest Build 27 | 10 25 27 Greatest Support 40 | 40 40 40 Greatest Overweight (x) . | . . . Average Overweight (x) . | . . . Largest Inventory Capacity 15 | 8 15 15 Average Capacity 14 | 7 14 15 Most Carried 14 | 4 4 14 Average Carried 8 | 2 4 10 Final Capacity 15 | 8 15 15 Final Carried 9 | 4 4 9 Class Distribution -------------------- 100% | Mutant Dominant Class ---------------- Mutant | -10/Materials Mutant | -10/Subcaves Resources | -11 -10 -10 ----------- Run | Yrd Mat Sub Matter Collected 293 | 261 . 32 Remotely . | . . . Salvage Created 181 | . . 181 Parts 12 | . . 12 Haulers Intercepted . | . . . Recyclers Shooed . | . . . Parts Field Recycled . | . . . Retrieved Matter . | . . . Parts Self-Destructed 15 | . . 15 Prevented . | . . . Kills | -11 -10 -10 ------- Run | Yrd Mat Sub Combat Hostiles Destroyed 4 | . . 4 Guns 4 | . . 4 Classes Destroyed 3 | . . 3 Grunt 1 | . . 1 Sentry 1 | . . 1 Subdweller 2 | . . 2 Best Kill Streak 2 | . . 2 Combat Bots Only 2 | . . 2 Max Kills in Single Turn 1 | . . 1 Gunslinging . | . . . Exploded . | . . . Melee . | . . . Uniques/NPCs Destroyed . | . . . Combat | -11 -10 -10 -------- Run | Yrd Mat Sub Hostile Shots Fired 55 | . . 55 Missed 9 | . . 9 Hits 46 | . . 46 Projectile 46 | . . 46 Critical Strikes 2 | . . 2 Damage Taken 888 | . . 888 Core 254 | . . 254 Absorbed by Shields . | . . . Core Remaining (%) 100 | 100 . . Volleys Fired 31 | 1 . 30 Largest 2 | 2 . 2 Hottest 85 | 60 . 85 Shots Fired 62 | 2 . 60 Gun 62 | 2 . 60 Cannon . | . . . Launcher . | . . . Special . | . . . Kinetic 31 | 1 . 30 Thermal 31 | 1 . 30 Explosive . | . . . Electromagnetic . | . . . Robot Hit Streak 43 | 2 . 43 Robot Miss Streak 2 | . . 2 Penetration Max . | . . . Secondary Targets 1 | . . 1 Max Gunslinging Chain 1 | . . 1 Shots Hit Robots 54 | 2 . 52 Core Hits 10 | . . 10 Critical Kills . | . . . Critical Parts Destroyed 1 | . . 1 Critical Strikes 1 | . . 1 Destroy 1 | . . 1 Melee Attacks . | . . . Impact . | . . . Slashing . | . . . Piercing . | . . . Sneak Attacks . | . . . Combat Hostiles . | . . . Follow-up Attacks . | . . . Damage Inflicted 563 | 19 . 544 Guns 563 | 19 . 544 Cannons . | . . . Explosions . | . . . Melee . | . . . Ramming . | . . . Kinetic 241 | 8 . 233 Thermal 322 | 11 . 311 Explosive . | . . . Electromagnetic . | . . . Impact . | . . . Slashing . | . . . Piercing . | . . . Highest Corruption . | . . . Average Corruption . | . . . Corruption Purged . | . . . Corruption Blocked . | . . . Overload Shots . | . . . Overflow Damage . | . . . Projectiles . | . . . Explosions . | . . . Melee . | . . . Knockbacks . | . . . Impact . | . . . Kinetic . | . . . Secondary . | . . . Self-Inflicted Damage . | . . . Shots . | . . . Rammed . | . . . Targets Rammed . | . . . Kicked . | . . . Crushed . | . . . Highest Temperature 20 | 20 . 17 Average Temperature 7 | 15 . 5 Received Heat Transfer 159 | . . 159 Siege Activations . | . . . Martial Activations . | . . . Shielding Activations . | . . . Robots Disrupted . | . . . Combat Hostiles . | . . . Robots Corrupted . | . . . Combat Hostiles . | . . . Parts Fried . | . . . Impact Corruptions . | . . . Robots Melted . | . . . Combat Hostiles . | . . . Parts Melted . | . . . Heat Transferred 650 | 25 . 625 Parts Sabotaged . | . . . Parts Stolen . | . . . Parts Stripped . | . . . Power Chain Reactions . | . . . Alert | -11 -10 -10 ------- Run | Yrd Mat Sub Maximum Alert Level . | . . . Low Security (%) 100 | 100 100 . Level 1 . | . . . Level 2 . | . . . Level 3 . | . . . Level 4 . | . . . Level 5 . | . . . High Security . | . . . Max Security . | . . . Peak Influence . | . . . Initial . | . . . Average . | . . . Influence Increases 40 | . . 40 Destroy 0b10 Robot/C 40 | . . 40 Influence Decreases 40 | . . 40 Time Decay 40 | . . 40 Squads Dispatched 1 | . 1 . Investigation . | . . . Extermination . | . . . Reinforcement 1 | . 1 . Assault . | . . . Garrison . | . . . Intercept . | . . . Searches Triggered . | . . . Construction Impeded . | . . . Haulers Reinforced . | . . . Active Scanning Responses . | . . . Cargo Convoy Interrupts . | . . . Stealth | -11 -10 -10 --------- Run | Yrd Mat Sub Distress Signals . | . . . Communications Jammed . | . . . Distress Signals . | . . . Times Spotted 6 | . . 6 Peak Tracking Total 2 | . 1 2 Tactical Retreats . | . . . Traps | -11 -10 -10 ------- Run | Yrd Mat Sub Traps Triggered . | . . . Indirectly . | . . . Trap Hack Attempts . | . . . Triggered . | . . . Disarmed . | . . . Reprogrammed . | . . . Reused . | . . . Traps Extracted . | . . . Installed . | . . . Triggered . | . . . Machines | -11 -10 -10 ---------- Run | Yrd Mat Sub Machines Disabled . | . . . Max in Single Turn . | . . . Machines Repaired . | . . . Machines Dismantled . | . . . Machines Sabotaged . | . . . Overloaded Fab Kills . | . . . Hacking | -11 -10 -10 --------- Run | Yrd Mat Sub Machines Accessed . | . . . Terminals . | . . . Fabricators . | . . . Repair Stations . | . . . Recycling Units . | . . . Scanalyzers . | . . . Garrison Access . | . . . Total Hacks . | . . . Successful . | . . . Failed . | . . . Catastrophic . | . . . Database Lockouts . | . . . Manual . | . . . Terminals . | . . . Fabricators . | . . . Repair Stations . | . . . Recycling Units . | . . . Scanalyzers . | . . . Garrison Access . | . . . Terminal Hacks . | . . . Fabricator Hacks . | . . . Repair Station Hacks . | . . . Recycling Unit Hacks . | . . . Scanalyzer . | . . . Garrison Access Hacks . | . . . Unauthorized Hacks . | . . . Terminals . | . . . Fabricators . | . . . Repair Stations . | . . . Recycling Units . | . . . Scanalyzers . | . . . Garrison Access . | . . . Data Cores Recovered . | . . . Used . | . . . Hacking Detections . | . . . Full Trace Events . | . . . Feedback Events . | . . . Feedback Blocked . | . . . Robot Schematics Acquired . | . . . Robots Built . | . . . Authchips . | . . . Time . | . . . Total Robot Build Rating . | . . . Part Schematics Acquired . | . . . Parts Built . | . . . Authchips . | . . . Time . | . . . Total Part Build Rating . | . . . Parts Repaired . | . . . Time . | . . . Parts Recycled . | . . . Recycled Matter . | . . . Retrieved Matter . | . . . Retrieved Components . | . . . Parts Scanalyzed . | . . . Part Schematics Acquired . | . . . Parts Damaged . | . . . Bothacking | -11 -10 -10 ------------ Run | Yrd Mat Sub Used RIF Installer . | . . . Robots Hacked . | . . . Non-combat . | . . . Combat . | . . . Robot Hacks Applied . | . . . Relay Couplers Released . | . . . Fabnet Peak Effective % . | . . . Robots Rewired . | . . . Allies Hacked . | . . . Hacks Repelled . | . . . Allies | -11 -10 -10 -------- Run | Yrd Mat Sub Total Allies . | . . . Largest Group . | . . . Highest-Rated Group . | . . . Highest-Rated Ally . | . . . Total Orders . | . . . Ally Attacks . | . . . Total Damage . | . . . Kills . | . . . Allies Corrupted . | . . . Allies Melted . | . . . Intel | -11 -10 -10 ------- Run | Yrd Mat Sub Active Infowar (turns) . | . . . Robot Analysis Total . | . . . Derelict Logs Recovered 1 | . . 1 Drone Launches . | . . . Drone Recoveries . | . . . Exploration | -11 -10 -10 ------------- Run | Yrd Mat Sub Turns Passed 689 | 78 98 513 Spaces Moved 353 | 40 61 252 Core 1 | 1 . . Treads 352 | 39 61 252 Legs . | . . . Wheels . | . . . Hover . | . . . Flight . | . . . Fastest Speed 50 | 50 160 160 Average Speed 159 | 157 160 160 Slowest Speed 160 | 160 160 160 Overloaded Moves . | . . . Propulsion Burnouts . | . . . Robots Hopped . | . . . Potential Cave-ins . | . . . Cave-ins Triggered . | . . . Exploration Rate (%) 9 | 4 8 17 Regions Visited 2 Branch Regions 1 Pre-discovered Areas . | . . . Known Exits Taken . | . . . Unknown Exits Taken 2 | 1 1 . Scrap Searched . | . . . Spaces Dug . | . . . Terrain Destroyed . | . . . Melee . | . . . Projectile . | . . . AOE . | . . . Terrain Rammed . | . . . Walls Destroyed . | . . . Machines Disabled . | . . . Actions | -11 -10 -10 --------- Run | Yrd Mat Sub Total 419 | 50 62 307 Wait 9 | . . 9 Move 351 | 39 60 252 Hop . | . . . Pick Up 14 | 4 . 10 Fast Attach 7 | 6 1 . Attach 5 | . . 5 Detach . | . . . Swap 1 | . . 1 Drop 1 | . 1 . Fire 31 | 1 . 30 Melee . | . . . Ram . | . . . Kick . | . . . Crush . | . . . Escape Stasis . | . . . Rewire . | . . . Trap . | . . . Miscellaneous . | . . . Route ------- -11/Scrapyard -10/Materials -10/Subcaves (discovered 1 exit: Rec) History --------- Turn | Location | Event 31 | -11/Scrapyard | Discovered new exit (range 15) 79 | -11/Scrapyard | Entered Materials 147 | -10/Materials | Discovered new exit (range 7) 177 | -10/Materials | Entered Subcaves 178 | -10/Subcaves | Approached by a straggling Scientist 300 | -10/Subcaves | Build established: Mutant 332 | -10/Subcaves | Core integrity fell below 50% 408 | -10/Subcaves | Shifting Twisted Machinery released Battle Rifle 507 | -10/Subcaves | Identified exit to Recycling 687 | -10/Subcaves | Core integrity fell below 20% 690 | -10/Subcaves | Destroyed by I5-XLQ(R) with Subdweller Machine Gun Last Messages --------------- 00422_ Acquired Battle Rifle. VT-WBD(c): "I think it's somewhere south of here" 00507_ Acquired derelict log, extracted data. Loading 1 Subcaves exit... VT-WBD(c): "I think it's somewhere south of here" 00563_ OB-K6I(u) tweaks Twisted Machinery. VT-WBD(c): "I think it's somewhere south of here" 00624_ SB-GZ4(u) tweaks Twisted Machinery. VT-WBD(c): "I think it's somewhere southeast of here" 00669_ Lgt. Ion Engine destroyed. 00675_ Sml. Laser destroyed. 00683_ Lgt. Treads destroyed. 00685_ Imp. Ion Engine destroyed. 00688_ Lgt. Treads destroyed. 00688_ G1-Y6F(R) suffers critical hit (Destroy). 00688_ Destroyed Sub. Optics. Map ----- +----------------------------------------------------+ | ?????????????????### # ##??""???? | | ?????????????????#""" ## #???????? | | ??????????????# " # ###### #???????? | | ???????????????#"#""## #????# #???????? | | ????????????????## "## # ###????# #???????? | | ????????????????# ""#"" ###??????## ##???????? | | ?????????????????##""" # "#?????????####????????? | | ?????????????????# " # ""#?????????????????????? | | ??????????????# ####" ##?????????????????????? | | ??????????????# ???## #??????????????????????? | | ??????????????## ???##" #??????????????????????? | | ???????????????##????#" #??????????????????????? | | ?????????????????????# ####????????????????????? | | ????????????????????##" ## #????????????????????? | | ???????????????????##""" """#????????????????????? | | ???????????????????#""" " ##???????????????????? | | ???????????????????# " #???????????????????? | | ???????????????????# ## ##???????????????????? | | ???????????????????# ######????????????????????? | | ???????????????????# ##???????????????????????? | | ???????????????????# ###?????????????????????? | | ??????????????????## #?????????????????????? | | ??????????????# ## #?????????????????????? | | ?????????????## #?????????????????????? | | ?????????????# ##?????????????????????? | | ?????????????#### @#??????????????????????? | | ????????????????# R#?????????????????????? | | ????????????????##### R #????????????????????? | | ????????????????????# ???????????????????? | | ???????????????????# ??????????????????? | | ??????????????????# ## ?????????????????? | | ????????????????? # #? ????????????????? | | ???????????????? ### ##?? #???????????????? | | ??????????????? #??? #????##???????????????? | | ?????????????# #???? ?????????????????????? | | ?????????????? #????? ?????????????????????? | | ??????????????### ?????? ?????????????????????? | | ????????????????## ??????? ?????????????????????? | | ?????????????????????????? ?????????????????????? | | ?????????????????????????? ?????????????????????? | | ???????????????????????????#?????????????????????? | | ?????????????????????????????????????????????????? | | ?????????????????????????????????????????????????? | | ?????????????????????????????????????????????????? | | ?????????????????????????????????????????????????? | | ?????????????????????????????????????????????????? | | ?????????????????????????????????????????????????? | | ?????????????????????????????????????????????????? | | ?????????????????????????????????????????????????? | | ?????????????????????????????????????????????????? | +----------------------------------------------------+ Best States ------------- Heat Dissipation 25 Coolant Potential 50 Energy Generation 12 Energy Capacity 265 Matter Stores 300 Matter Capacity 300 Sight Range 16 Terrain Scan Density 10 Evasion (%) 40 Recoil Reduction 2 Item Schematics ----------------- None Robot Schematics ------------------ None Fabricated ------------ Nothing Repaired ---------- Nothing Alien Tech Used ----------------- None Achievements -------------- None Challenges ------------ None Game ------ Seed GlidesysInsulationBox Manual? 0 Play Time 00:06:51 Cumulative 65.2 hours Start 2025.08.26 @ 19:30:10 End 2025.08.26 @ 19:39:09 Sessions 3 Manual Loads 0 Difficulty Rogue Special Mode None Game No. 60 Rogue 60 Adventurer 0 Explorer 0 Win Type - Total 0 Types 0/0/0/0/0/0/0/0/0/0 Lore% 52 Gallery% 46 Achievement% 39 Wizard Run 0 Options --------- Layout 1 ASCII 0 Keyboard 0 Movement Mouse Keybinds 0 Fullscreen 1 Font 24/Smallcaps Map View 50x35 Zoom Use 0% Tactical HUD 1 Map Filters NONE Filters NONE Steam 1 RUN: 0c24a3d1-92de-42c1-b993-e991317bc33c